[Event "Early-Titled-Tuesday-Blitz-July-09-2024"]
[Site "Chess.com"]
[Date "2024.07.09"]
[Round "2"]
[White "Szachulec75"]
[Black "Gryffindorac8"]
[Result "0-1"]
[WhiteElo "2253"]
[BlackElo "2485"]
[TimeControl "180+1"]
[EndTime "8:15:37 PDT"]
[Termination "Gryffindorac8 won by resignation"]

1. Nf3 {[%clk 0:03:00.9]} 1... Nf6 {[%clk 0:02:59.3]} 2. g3 {[%clk 0:03:00.7]}
2... d5 {[%clk 0:02:59]} 3. Bg2 {[%clk 0:03:01.6]} 3... c5 {[%clk 0:02:53.4]} 4.
d3 {[%clk 0:03:02.5]} 4... Nc6 {[%clk 0:02:47.8]} 5. O-O {[%clk 0:03:03.4]} 5...
g6 {[%clk 0:02:45.5]} 6. Nbd2 {[%clk 0:03:03]} 6... Bg7 {[%clk 0:02:45.8]} 7. e4
{[%clk 0:03:02.5]} 7... O-O {[%clk 0:02:45.9]} 8. c3 {[%clk 0:03:00.6]} 8... e5
{[%clk 0:02:43.3]} 9. exd5 {[%clk 0:03:00.3]} 9... Nxd5 {[%clk 0:02:43.3]} 10.
Re1 {[%clk 0:03:01]} 10... Re8 {[%clk 0:02:40.3]} 11. a4 {[%clk 0:03:01.4]}
11... h6 {[%clk 0:02:36.9]} 12. Nc4 {[%clk 0:03:01]} 12... Qc7 {[%clk
0:02:35.8]} 13. Bd2 {[%clk 0:03:01.4]} 13... Bf5 {[%clk 0:02:34.1]} 14. Qc1
{[%clk 0:02:40.4]} 14... Bxd3 {[%clk 0:02:25.9]} 15. Bf1 {[%clk 0:02:09.1]}
15... Bxf1 {[%clk 0:02:19.6]} 16. Kxf1 {[%clk 0:02:09.5]} 16... Kh7 {[%clk
0:02:14.3]} 17. Re4 {[%clk 0:02:10]} 17... f5 {[%clk 0:01:49.9]} 18. Rh4 {[%clk
0:01:54.4]} 18... f4 {[%clk 0:01:49.1]} 19. Ng5+ {[%clk 0:01:43.2]} 19... Kg8
{[%clk 0:01:45.3]} 20. Ne4 {[%clk 0:01:42.5]} 20... g5 {[%clk 0:01:38.2]} 21.
Rh3 {[%clk 0:01:40]} 21... Qd7 {[%clk 0:01:31.7]} 22. Rh5 {[%clk 0:01:39.4]}
22... Qg4 {[%clk 0:01:13]} 23. Qd1 {[%clk 0:01:39.1]} 23... f3 {[%clk 0:01:13]}
24. Bxg5 {[%clk 0:01:29.3]} 24... Qxe4 {[%clk 0:01:06.4]} 25. Nd6 {[%clk
0:00:56.2]} 25... Qe2+ {[%clk 0:00:50.1]} 26. Qxe2 {[%clk 0:00:54]} 26... fxe2+
{[%clk 0:00:49.6]} 27. Kxe2 {[%clk 0:00:54.9]} 27... Re6 {[%clk 0:00:41.9]} 0-1

[Event "Early-Titled-Tuesday-Blitz-July-09-2024"]
[Site "Chess.com"]
[Date "2024.07.09"]
[Round "2"]
[White "BardArtem"]
[Black "JosefineHeinemann"]
[Result "0-1"]
[WhiteElo "2817"]
[BlackElo "2503"]
[TimeControl "180+1"]
[EndTime "8:15:45 PDT"]
[Termination "JosefineHeinemann won by resignation"]

1. e4 {[%clk 0:03:00.9]} 1... e5 {[%clk 0:02:51.3]} 2. Nf3 {[%clk 0:03:00.6]}
2... Nc6 {[%clk 0:02:48.7]} 3. Nc3 {[%clk 0:03:00.7]} 3... Nf6 {[%clk
0:02:35.4]} 4. a4 {[%clk 0:03:00.1]} 4... d5 {[%clk 0:02:33.1]} 5. Bb5 {[%clk
0:02:59.3]} 5... dxe4 {[%clk 0:02:31.1]} 6. Nxe5 {[%clk 0:02:58.7]} 6... Bd7
{[%clk 0:02:25.5]} 7. Bxc6 {[%clk 0:02:57]} 7... Bxc6 {[%clk 0:02:25.4]} 8. Nxc6
{[%clk 0:02:57.2]} 8... bxc6 {[%clk 0:02:25.8]} 9. Qe2 {[%clk 0:02:56.9]} 9...
Qd4 {[%clk 0:02:20.8]} 10. d3 {[%clk 0:02:55.6]} 10... Bb4 {[%clk 0:02:20.7]}
11. Bd2 {[%clk 0:02:53.8]} 11... O-O {[%clk 0:02:17.2]} 12. dxe4 {[%clk
0:02:42.4]} 12... Nxe4 {[%clk 0:01:46.8]} 13. O-O-O {[%clk 0:01:23.9]} 13...
Bxc3 {[%clk 0:01:41]} 14. Bxc3 {[%clk 0:01:17.4]} 14... Nxc3 {[%clk 0:01:33.6]}
15. bxc3 {[%clk 0:01:18.3]} 15... Qxa4 {[%clk 0:01:31.5]} 16. Qe3 {[%clk
0:00:13.6]} 16... Rfd8 {[%clk 0:01:17.9]} 17. Rxd8+ {[%clk 0:00:02.5]} 17...
Rxd8 {[%clk 0:01:17.7]} 18. Kb2 {[%clk 0:00:01.8]} 18... Rb8+ {[%clk 0:01:11.9]}
19. Kc1 {[%clk 0:00:02.3]} 19... Qa1+ {[%clk 0:01:11.8]} 0-1

[Event "Early-Titled-Tuesday-Blitz-July-09-2024"]
[Site "Chess.com"]
[Date "2024.07.09"]
[Round "2"]
[White "JaloliddinIlkhomi"]
[Black "pinelone"]
[Result "1-0"]
[WhiteElo "2723"]
[BlackElo "2407"]
[TimeControl "180+1"]
[EndTime "8:15:50 PDT"]
[Termination "JaloliddinIlkhomi won by resignation"]

1. Nf3 {[%clk 0:03:00.9]} 1... c5 {[%clk 0:02:59.6]} 2. c3 {[%clk 0:03:00.8]}
2... d5 {[%clk 0:02:57.5]} 3. d4 {[%clk 0:03:01.6]} 3... e6 {[%clk 0:02:57.6]}
4. Bf4 {[%clk 0:03:01.9]} 4... Nc6 {[%clk 0:02:56.9]} 5. e3 {[%clk 0:03:01.2]}
5... Bd6 {[%clk 0:02:56.6]} 6. Bg3 {[%clk 0:03:00.9]} 6... Nf6 {[%clk
0:02:48.8]} 7. Nbd2 {[%clk 0:03:01.3]} 7... O-O {[%clk 0:02:48.3]} 8. Bd3 {[%clk
0:03:01.6]} 8... b6 {[%clk 0:02:44.2]} 9. Ne5 {[%clk 0:03:01.6]} 9... Bb7 {[%clk
0:02:28.7]} 10. f4 {[%clk 0:03:01.1]} 10... Ne7 {[%clk 0:02:28]} 11. Qb1 {[%clk
0:03:01]} 11... g6 {[%clk 0:02:26]} 12. O-O {[%clk 0:03:01]} 12... Nf5 {[%clk
0:02:26]} 13. Bf2 {[%clk 0:03:00.9]} 13... Be7 {[%clk 0:02:25.6]} 14. Rd1 {[%clk
0:02:59.8]} 14... Nd6 {[%clk 0:02:25.3]} 15. Bh4 {[%clk 0:03:00.1]} 15... Nfe4
{[%clk 0:02:21.8]} 16. Bxe7 {[%clk 0:02:59.3]} 16... Qxe7 {[%clk 0:02:22.4]} 17.
Nxe4 {[%clk 0:02:59.9]} 17... Nxe4 {[%clk 0:02:19]} 18. Bxe4 {[%clk 0:03:00.2]}
18... dxe4 {[%clk 0:02:18.6]} 19. dxc5 {[%clk 0:02:44.4]} 19... Rad8 {[%clk
0:02:17.9]} 20. c6 {[%clk 0:02:38.9]} 20... Ba8 {[%clk 0:02:16.5]} 21. Qxe4
{[%clk 0:02:37.5]} 21... f6 {[%clk 0:02:12.3]} 22. Nf3 {[%clk 0:02:17.4]} 22...
Kf7 {[%clk 0:02:05.2]} 23. Nd4 {[%clk 0:02:10.7]} 23... Rd6 {[%clk 0:02:00.5]}
24. Rd3 {[%clk 0:01:33.3]} 24... Rfd8 {[%clk 0:01:59.6]} 25. Rad1 {[%clk
0:01:30.4]} 25... e5 {[%clk 0:01:53]} 26. fxe5 {[%clk 0:01:27.4]} 26... fxe5
{[%clk 0:01:48]} 27. Nf3 {[%clk 0:01:27.3]} 27... Rxd3 {[%clk 0:01:39.5]} 28.
Rxd3 {[%clk 0:01:19.4]} 28... Rxd3 {[%clk 0:01:34.3]} 29. Qxd3 {[%clk
0:01:19.7]} 29... e4 {[%clk 0:01:13.6]} 30. Qd5+ {[%clk 0:01:16.4]} 30... Kg7
{[%clk 0:01:11.2]} 31. Nd4 {[%clk 0:01:13.9]} 31... Kf6 {[%clk 0:01:04.8]} 32.
b4 {[%clk 0:01:09.1]} 32... a6 {[%clk 0:01:04.2]} 33. a4 {[%clk 0:01:07.9]}
33... b5 {[%clk 0:01:03.7]} 34. axb5 {[%clk 0:01:08]} 34... axb5 {[%clk
0:01:03.9]} 35. Qxb5 {[%clk 0:01:08.6]} 35... Qa7 {[%clk 0:01:00]} 36. Qa5
{[%clk 0:01:08.9]} 36... Qf7 {[%clk 0:00:54.4]} 37. Qxa8 {[%clk 0:01:05.5]}
37... Qa2 {[%clk 0:00:51.4]} 38. Qf8+ {[%clk 0:01:06]} 38... Kg5 {[%clk
0:00:50]} 39. Qf4+ {[%clk 0:01:06.4]} 1-0

[Event "Early-Titled-Tuesday-Blitz-July-09-2024"]
[Site "Chess.com"]
[Date "2024.07.09"]
[Round "2"]
[White "Balla_Tamas"]
[Black "campochess"]
[Result "0-1"]
[WhiteElo "2463"]
[BlackElo "2260"]
[TimeControl "180+1"]
[EndTime "8:15:53 PDT"]
[Termination "campochess won by resignation"]

1. e4 {[%clk 0:03:00.9]} 1... c5 {[%clk 0:02:59.9]} 2. c3 {[%clk 0:03:00.8]}
2... Nf6 {[%clk 0:02:57.5]} 3. e5 {[%clk 0:03:00.8]} 3... Nd5 {[%clk 0:02:57]}
4. d4 {[%clk 0:03:01]} 4... cxd4 {[%clk 0:02:57.1]} 5. Nf3 {[%clk 0:03:00.9]}
5... d6 {[%clk 0:02:56.8]} 6. cxd4 {[%clk 0:03:01.4]} 6... Nc6 {[%clk
0:02:54.6]} 7. Bc4 {[%clk 0:03:00.4]} 7... e6 {[%clk 0:02:48.6]} 8. O-O {[%clk
0:02:56.3]} 8... Nb6 {[%clk 0:02:47.2]} 9. Bb5 {[%clk 0:02:51.5]} 9... Be7
{[%clk 0:02:45.8]} 10. Qe2 {[%clk 0:02:50.4]} 10... O-O {[%clk 0:02:45.4]} 11.
Rd1 {[%clk 0:02:50.5]} 11... d5 {[%clk 0:02:44.3]} 12. Bxc6 {[%clk 0:02:49]}
12... bxc6 {[%clk 0:02:43.1]} 13. Be3 {[%clk 0:02:47.7]} 13... a5 {[%clk
0:02:42.3]} 14. Nbd2 {[%clk 0:02:44.7]} 14... Ba6 {[%clk 0:02:41.8]} 15. Qe1
{[%clk 0:02:40.4]} 15... a4 {[%clk 0:02:30.9]} 16. a3 {[%clk 0:02:38.6]} 16...
Rb8 {[%clk 0:02:28.5]} 17. Rac1 {[%clk 0:02:38.2]} 17... Qd7 {[%clk 0:02:24.5]}
18. Bg5 {[%clk 0:02:02.8]} 18... h6 {[%clk 0:02:22.2]} 19. Bxe7 {[%clk
0:02:01.8]} 19... Qxe7 {[%clk 0:02:21.6]} 20. Nf1 {[%clk 0:01:58.1]} 20... Nc4
{[%clk 0:02:20.3]} 21. Ne3 {[%clk 0:01:56]} 21... Rxb2 {[%clk 0:02:15.8]} 22.
Nxc4 {[%clk 0:01:55.8]} 22... Bxc4 {[%clk 0:02:15.7]} 23. Rc3 {[%clk 0:01:50.6]}
23... Rfb8 {[%clk 0:02:12.3]} 24. h3 {[%clk 0:01:49.8]} 24... R8b3 {[%clk
0:02:11.8]} 25. Rdc1 {[%clk 0:01:48.3]} 25... Qxa3 {[%clk 0:02:09.6]} 26. Rxb3
{[%clk 0:01:48.7]} 26... Rxb3 {[%clk 0:02:07.5]} 27. Ra1 {[%clk 0:01:47.1]}
27... Qb4 {[%clk 0:02:05.6]} 28. Nd2 {[%clk 0:01:46.9]} 28... Rd3 {[%clk
0:02:00.5]} 29. Rd1 {[%clk 0:01:30.6]} 29... Bb5 {[%clk 0:01:53.3]} 30. Qe2
{[%clk 0:01:18.5]} 30... a3 {[%clk 0:01:49.6]} 31. Rb1 {[%clk 0:00:25.1]} 31...
Qxd4 {[%clk 0:01:47]} 32. Nf3 {[%clk 0:00:18.3]} 32... Qa4 {[%clk 0:01:40.7]}
33. Qa2 {[%clk 0:00:14.9]} 33... Bc4 {[%clk 0:01:37.9]} 34. Qa1 {[%clk
0:00:13.3]} 34... a2 {[%clk 0:01:36.3]} 35. h4 {[%clk 0:00:11.3]} 35... axb1=Q+
{[%clk 0:01:34.9]} 36. Qxb1 {[%clk 0:00:12.2]} 36... Rd1+ {[%clk 0:01:34.4]} 0-1

[Event "Early-Titled-Tuesday-Blitz-July-09-2024"]
[Site "Chess.com"]
[Date "2024.07.09"]
[Round "2"]
[White "Chessbard1972"]
[Black "ThetNaung291"]
[Result "1-0"]
[WhiteElo "2197"]
[BlackElo "2442"]
[TimeControl "180+1"]
[EndTime "8:15:54 PDT"]
[Termination "Chessbard1972 won by resignation"]

1. d4 {[%clk 0:03:00.9]} 1... Nf6 {[%clk 0:02:59.4]} 2. c4 {[%clk 0:02:59.1]}
2... e6 {[%clk 0:02:56]} 3. Nf3 {[%clk 0:02:58.1]} 3... b6 {[%clk 0:02:55.7]} 4.
a3 {[%clk 0:02:57.6]} 4... Bb7 {[%clk 0:02:55.1]} 5. Nc3 {[%clk 0:02:57.4]} 5...
d5 {[%clk 0:02:52.8]} 6. cxd5 {[%clk 0:02:57.5]} 6... exd5 {[%clk 0:02:52.1]} 7.
Qa4+ {[%clk 0:02:57.5]} 7... c6 {[%clk 0:02:50.5]} 8. g3 {[%clk 0:02:53.2]} 8...
Bd6 {[%clk 0:02:50.1]} 9. Bg2 {[%clk 0:02:53.4]} 9... O-O {[%clk 0:02:49.6]} 10.
O-O {[%clk 0:02:54.3]} 10... Nbd7 {[%clk 0:02:49.1]} 11. Bf4 {[%clk 0:02:48.2]}
11... Qb8 {[%clk 0:02:40.4]} 12. e3 {[%clk 0:02:42.4]} 12... Re8 {[%clk
0:02:39.8]} 13. b4 {[%clk 0:02:38.2]} 13... b5 {[%clk 0:02:31.2]} 14. Qc2 {[%clk
0:02:35.1]} 14... a5 {[%clk 0:02:29]} 15. Rab1 {[%clk 0:02:26.9]} 15... axb4
{[%clk 0:02:26.9]} 16. axb4 {[%clk 0:02:25.6]} 16... h6 {[%clk 0:02:26.2]} 17.
Ne2 {[%clk 0:02:22.8]} 17... Bxf4 {[%clk 0:02:20.4]} 18. Nxf4 {[%clk 0:02:21.6]}
18... Qd6 {[%clk 0:02:19.9]} 19. Nd3 {[%clk 0:02:21]} 19... Ra3 {[%clk
0:02:12.9]} 20. Nc5 {[%clk 0:02:19.9]} 20... Nxc5 {[%clk 0:02:12.7]} 21. dxc5
{[%clk 0:02:19.9]} 21... Qc7 {[%clk 0:02:08.7]} 22. Nd4 {[%clk 0:02:15.2]} 22...
Rea8 {[%clk 0:02:07.8]} 23. Rfe1 {[%clk 0:02:10]} 23... Bc8 {[%clk 0:02:04.2]}
24. e4 {[%clk 0:02:07.1]} 24... Be6 {[%clk 0:02:03.7]} 25. e5 {[%clk 0:02:05.4]}
25... Ra2 {[%clk 0:01:54.9]} 26. Rb2 {[%clk 0:02:02.4]} 26... Rxb2 {[%clk
0:01:53.3]} 27. Qxb2 {[%clk 0:02:02.2]} 27... Ne4 {[%clk 0:01:44.7]} 28. f3
{[%clk 0:01:56.3]} 28... Ng5 {[%clk 0:01:32.7]} 29. h4 {[%clk 0:01:54.9]} 29...
Nh7 {[%clk 0:01:31.9]} 30. f4 {[%clk 0:01:53.9]} 30... Bg4 {[%clk 0:01:31.3]}
31. f5 {[%clk 0:01:49]} 31... Nf8 {[%clk 0:01:30.2]} 32. Qd2 {[%clk 0:01:44.9]}
32... Ra3 {[%clk 0:01:24.8]} 33. Qf4 {[%clk 0:01:43.9]} 33... h5 {[%clk
0:01:24]} 34. e6 {[%clk 0:01:18.2]} 34... Qxf4 {[%clk 0:00:43.9]} 35. gxf4
{[%clk 0:01:16.6]} 1-0

[Event "Early-Titled-Tuesday-Blitz-July-09-2024"]
[Site "Chess.com"]
[Date "2024.07.09"]
[Round "2"]
[White "ural58"]
[Black "Yaacovn"]
[Result "0-1"]
[WhiteElo "2414"]
[BlackElo "2778"]
[TimeControl "180+1"]
[EndTime "8:15:57 PDT"]
[Termination "Yaacovn won by resignation"]

1. e4 {[%clk 0:02:31.5]} 1... c6 {[%clk 0:02:58.3]} 2. Nc3 {[%clk 0:02:30.3]}
2... d5 {[%clk 0:02:59.2]} 3. Nf3 {[%clk 0:02:30.4]} 3... dxe4 {[%clk
0:02:59.3]} 4. Nxe4 {[%clk 0:02:30.5]} 4... Nf6 {[%clk 0:03:00.2]} 5. Qe2 {[%clk
0:02:30.6]} 5... Bg4 {[%clk 0:02:57.2]} 6. Nxf6+ {[%clk 0:02:25.2]} 6... gxf6
{[%clk 0:02:57.2]} 7. h3 {[%clk 0:02:25.4]} 7... Bxf3 {[%clk 0:02:56.7]} 8. Qxf3
{[%clk 0:02:25.3]} 8... Qd5 {[%clk 0:02:57.1]} 9. Qb3 {[%clk 0:02:15.9]} 9...
Qxb3 {[%clk 0:02:52.3]} 10. axb3 {[%clk 0:02:15.3]} 10... e6 {[%clk 0:02:53.2]}
11. c3 {[%clk 0:02:14.2]} 11... Nd7 {[%clk 0:02:53]} 12. b4 {[%clk 0:02:13.5]}
12... a6 {[%clk 0:02:53.3]} 13. f4 {[%clk 0:02:12.8]} 13... O-O-O {[%clk
0:02:51.8]} 14. d4 {[%clk 0:02:12.5]} 14... h5 {[%clk 0:02:51.4]} 15. h4 {[%clk
0:02:07.8]} 15... f5 {[%clk 0:02:51.7]} 16. g3 {[%clk 0:02:07]} 16... Rg8 {[%clk
0:02:51.5]} 17. Kf2 {[%clk 0:02:06.9]} 17... Nf6 {[%clk 0:02:51.9]} 18. Rg1
{[%clk 0:01:57.6]} 18... Be7 {[%clk 0:02:47.7]} 19. Be2 {[%clk 0:01:56.4]} 19...
Ne4+ {[%clk 0:02:48.1]} 20. Kf3 {[%clk 0:01:55.6]} 20... Bxh4 {[%clk 0:02:47.6]}
21. Be3 {[%clk 0:01:53.1]} 21... Bxg3 {[%clk 0:02:26.3]} 22. Bd3 {[%clk
0:01:49.7]} 22... h4 {[%clk 0:02:25.4]} 23. Bxe4 {[%clk 0:01:49.6]} 23... fxe4+
{[%clk 0:02:26.3]} 24. Kxe4 {[%clk 0:01:50.1]} 24... f5+ {[%clk 0:02:26]} 25.
Kf3 {[%clk 0:01:50.1]} 25... Rg4 {[%clk 0:02:22.8]} 26. Rh1 {[%clk 0:01:46.8]}
26... Rdg8 {[%clk 0:02:22.2]} 27. Raf1 {[%clk 0:01:44.8]} 27... Kd7 {[%clk
0:02:22.2]} 28. c4 {[%clk 0:01:44.2]} 28... Kc7 {[%clk 0:02:22]} 29. Rd1 {[%clk
0:01:43.8]} 29... Rd8 {[%clk 0:02:19.5]} 30. b3 {[%clk 0:01:43.8]} 30... Rg7
{[%clk 0:02:18.4]} 31. Bf2 {[%clk 0:01:40.4]} 31... Bxf2 {[%clk 0:02:15.7]} 32.
Kxf2 {[%clk 0:01:40.1]} 32... Rg4 {[%clk 0:02:16]} 33. Ke3 {[%clk 0:01:30.5]}
33... Kd6 {[%clk 0:02:06.5]} 34. Rh3 {[%clk 0:01:28.8]} 34... Rdg8 {[%clk
0:02:04.8]} 35. Rdh1 {[%clk 0:01:28.3]} 35... Rg3+ {[%clk 0:02:05.1]} 36. Kd2
{[%clk 0:01:27.2]} 36... Rxh3 {[%clk 0:02:03.1]} 37. Rxh3 {[%clk 0:01:26.6]}
37... Rg4 {[%clk 0:02:01.9]} 38. Ke3 {[%clk 0:01:23.1]} 38... b6 {[%clk
0:02:02.4]} 39. Kf3 {[%clk 0:01:23.1]} 39... a5 {[%clk 0:02:02.8]} 40. bxa5
{[%clk 0:01:22.3]} 40... bxa5 {[%clk 0:02:03.7]} 41. Ke3 {[%clk 0:01:15.8]}
41... c5 {[%clk 0:02:03.3]} 42. dxc5+ {[%clk 0:01:11.1]} 42... Kxc5 {[%clk
0:02:04.2]} 43. Rh2 {[%clk 0:01:09.7]} 43... Rg3+ {[%clk 0:01:59.6]} 44. Kd2
{[%clk 0:01:09]} 44... Rxb3 {[%clk 0:01:59.9]} 45. Rxh4 {[%clk 0:01:07.2]} 45...
Kxc4 {[%clk 0:02:00.4]} 46. Rh8 {[%clk 0:01:05.4]} 46... Rf3 {[%clk 0:01:54.7]}
47. Rc8+ {[%clk 0:00:57.1]} 47... Kd5 {[%clk 0:01:54.8]} 48. Rd8+ {[%clk
0:00:56.9]} 48... Kc6 {[%clk 0:01:54.8]} 49. Rd4 {[%clk 0:00:55.9]} 49... Kc5
{[%clk 0:01:54]} 50. Ra4 {[%clk 0:00:54.1]} 50... Kb5 {[%clk 0:01:54.3]} 51. Rd4
{[%clk 0:00:54]} 51... a4 {[%clk 0:01:54.7]} 52. Kc2 {[%clk 0:00:54.1]} 52... a3
{[%clk 0:01:54.2]} 53. Kb1 {[%clk 0:00:53.8]} 53... Kc5 {[%clk 0:01:52.5]} 54.
Ra4 {[%clk 0:00:53.4]} 54... Re3 {[%clk 0:01:51.9]} 55. Ka2 {[%clk 0:00:43.1]}
55... Re4 {[%clk 0:01:50.3]} 56. Ra6 {[%clk 0:00:42.4]} 56... Kd4 {[%clk
0:01:48.9]} 57. Kxa3 {[%clk 0:00:41.7]} 57... Ke3 {[%clk 0:01:49.3]} 0-1

[Event "Early-Titled-Tuesday-Blitz-July-09-2024"]
[Site "Chess.com"]
[Date "2024.07.09"]
[Round "2"]
[White "Losingexperience"]
[Black "chrisclaireredfield"]
[Result "0-1"]
[WhiteElo "2732"]
[BlackElo "2512"]
[TimeControl "180+1"]
[EndTime "8:15:59 PDT"]
[Termination "chrisclaireredfield won by resignation"]

1. e4 {[%clk 0:03:00.9]} 1... e5 {[%clk 0:02:59.5]} 2. Nf3 {[%clk 0:03:00.5]}
2... Nf6 {[%clk 0:03:00.1]} 3. Nxe5 {[%clk 0:02:59.3]} 3... d6 {[%clk
0:03:00.4]} 4. Nf3 {[%clk 0:02:59.5]} 4... Nxe4 {[%clk 0:03:01]} 5. d3 {[%clk
0:03:00]} 5... Nf6 {[%clk 0:03:01.1]} 6. d4 {[%clk 0:03:00.6]} 6... d5 {[%clk
0:03:01.4]} 7. Bd3 {[%clk 0:03:01.1]} 7... Bd6 {[%clk 0:03:01.4]} 8. O-O {[%clk
0:03:00.8]} 8... O-O {[%clk 0:03:01.6]} 9. h3 {[%clk 0:03:01.2]} 9... h6 {[%clk
0:03:00.9]} 10. Re1 {[%clk 0:03:00.8]} 10... Re8 {[%clk 0:02:55.3]} 11. Nbd2
{[%clk 0:02:59.8]} 11... Rxe1+ {[%clk 0:02:53.3]} 12. Qxe1 {[%clk 0:03:00.7]}
12... c6 {[%clk 0:02:51]} 13. c3 {[%clk 0:02:58]} 13... Nbd7 {[%clk 0:02:49.4]}
14. Ne5 {[%clk 0:02:58]} 14... Qe7 {[%clk 0:02:44.5]} 15. Ndf3 {[%clk
0:02:57.8]} 15... Ne4 {[%clk 0:02:29.6]} 16. Bf4 {[%clk 0:02:24]} 16... Ndf6
{[%clk 0:02:29]} 17. Qe2 {[%clk 0:02:13]} 17... Bf5 {[%clk 0:02:27.9]} 18. Re1
{[%clk 0:02:13.4]} 18... Re8 {[%clk 0:02:24.7]} 19. Nd2 {[%clk 0:02:04.2]} 19...
Bh7 {[%clk 0:02:16.3]} 20. f3 {[%clk 0:01:53]} 20... Nxd2 {[%clk 0:02:14.3]} 21.
Qxd2 {[%clk 0:01:48.7]} 21... Qc7 {[%clk 0:02:05]} 22. Bxh6 {[%clk 0:01:15.7]}
22... gxh6 {[%clk 0:01:46.6]} 23. Qxh6 {[%clk 0:01:14.2]} 23... Bxd3 {[%clk
0:01:41.5]} 24. Qxf6 {[%clk 0:01:05.3]} 24... Bxe5 {[%clk 0:01:38]} 25. dxe5
{[%clk 0:00:57.4]} 25... Re6 {[%clk 0:01:37.7]} 26. Qg5+ {[%clk 0:00:51.3]}
26... Rg6 {[%clk 0:01:37.6]} 27. Qf4 {[%clk 0:00:49.7]} 27... Qd7 {[%clk
0:01:33.3]} 28. Kh2 {[%clk 0:00:48.7]} 28... Qf5 {[%clk 0:01:31.5]} 29. Qd4
{[%clk 0:00:45.7]} 29... Qg5 {[%clk 0:01:08.3]} 30. Rg1 {[%clk 0:00:40.1]} 30...
Qg3+ {[%clk 0:01:06.6]} 31. Kh1 {[%clk 0:00:40]} 31... Bf5 {[%clk 0:01:06.8]}
32. Qd2 {[%clk 0:00:32.8]} 32... Bxh3 {[%clk 0:01:02.9]} 0-1

[Event "Early-Titled-Tuesday-Blitz-July-09-2024"]
[Site "Chess.com"]
[Date "2024.07.09"]
[Round "2"]
[White "Ordekalog"]
[Black "xh4823"]
[Result "1-0"]
[WhiteElo "2724"]
[BlackElo "2386"]
[TimeControl "180+1"]
[EndTime "8:16:06 PDT"]
[Termination "Ordekalog won by resignation"]

1. e4 {[%clk 0:02:57.2]} 1... g6 {[%clk 0:02:56.5]} 2. d3 {[%clk 0:02:56.2]}
2... Bg7 {[%clk 0:02:55.7]} 3. f4 {[%clk 0:02:55.6]} 3... d6 {[%clk 0:02:54.5]}
4. g3 {[%clk 0:02:53.7]} 4... Nd7 {[%clk 0:02:52.5]} 5. Nf3 {[%clk 0:02:52.6]}
5... b5 {[%clk 0:02:51]} 6. a4 {[%clk 0:02:50.5]} 6... b4 {[%clk 0:02:47.8]} 7.
Bg2 {[%clk 0:02:47.1]} 7... Bb7 {[%clk 0:02:47.8]} 8. Nbd2 {[%clk 0:02:43.9]}
8... e6 {[%clk 0:02:46.8]} 9. O-O {[%clk 0:02:42.9]} 9... Ne7 {[%clk 0:02:46.6]}
10. Nb3 {[%clk 0:02:38.4]} 10... h6 {[%clk 0:02:43.4]} 11. Na5 {[%clk
0:02:35.2]} 11... Ba6 {[%clk 0:02:37.2]} 12. e5 {[%clk 0:02:27]} 12... d5 {[%clk
0:02:31.9]} 13. g4 {[%clk 0:02:08.6]} 13... c5 {[%clk 0:02:30.1]} 14. Nb3 {[%clk
0:02:08.7]} 14... c4 {[%clk 0:02:30]} 15. Nbd4 {[%clk 0:02:02.3]} 15... Nc5
{[%clk 0:02:21.4]} 16. Nb5 {[%clk 0:01:56.5]} 16... Bxb5 {[%clk 0:02:15.2]} 17.
axb5 {[%clk 0:01:57.4]} 17... cxd3 {[%clk 0:02:09.6]} 18. cxd3 {[%clk
0:01:56.3]} 18... O-O {[%clk 0:02:04.5]} 19. Be3 {[%clk 0:01:51.4]} 19... Qb6
{[%clk 0:01:45.7]} 20. Qc2 {[%clk 0:01:24.1]} 20... Rfc8 {[%clk 0:01:43.6]} 21.
Rfc1 {[%clk 0:01:23.6]} 21... b3 {[%clk 0:01:13.7]} 22. Qf2 {[%clk 0:01:21.5]}
22... Qxb5 {[%clk 0:00:17.1]} 23. Bxc5 {[%clk 0:01:20]} 23... Nc6 {[%clk
0:00:17.7]} 24. d4 {[%clk 0:01:18.8]} 24... a5 {[%clk 0:00:16.1]} 25. Bf1 {[%clk
0:01:18.3]} 25... Qb7 {[%clk 0:00:14.6]} 26. f5 {[%clk 0:01:18.2]} 26... gxf5
{[%clk 0:00:13.8]} 27. gxf5 {[%clk 0:01:16.9]} 27... a4 {[%clk 0:00:13.5]} 28.
f6 {[%clk 0:01:15.4]} 28... Bf8 {[%clk 0:00:13]} 29. Qg3+ {[%clk 0:01:14.8]}
29... Kh7 {[%clk 0:00:09.6]} 30. Bd3+ {[%clk 0:01:14.1]} 30... Kh8 {[%clk
0:00:09.1]} 31. Bxf8 {[%clk 0:01:13.8]} 1-0

[Event "Early-Titled-Tuesday-Blitz-July-09-2024"]
[Site "Chess.com"]
[Date "2024.07.09"]
[Round "2"]
[White "pavelalexandru07"]
[Black "VirtualCoach"]
[Result "0-1"]
[WhiteElo "2494"]
[BlackElo "2312"]
[TimeControl "180+1"]
[EndTime "8:16:10 PDT"]
[Termination "VirtualCoach won on time"]

1. e4 {[%clk 0:03:00.9]} 1... c5 {[%clk 0:02:58.3]} 2. Nf3 {[%clk 0:03:00.6]}
2... d6 {[%clk 0:02:54.4]} 3. d4 {[%clk 0:02:56.8]} 3... cxd4 {[%clk 0:02:55.3]}
4. Nxd4 {[%clk 0:02:56.4]} 4... Nf6 {[%clk 0:02:54.7]} 5. Nc3 {[%clk 0:02:56.8]}
5... a6 {[%clk 0:02:54.4]} 6. Bg5 {[%clk 0:02:51.2]} 6... Nbd7 {[%clk
0:02:53.9]} 7. Qe2 {[%clk 0:02:49.9]} 7... h6 {[%clk 0:02:52.2]} 8. Bh4 {[%clk
0:02:48.3]} 8... g6 {[%clk 0:02:52.7]} 9. f4 {[%clk 0:02:46.1]} 9... Bg7 {[%clk
0:02:53.2]} 10. O-O-O {[%clk 0:02:42.6]} 10... Qc7 {[%clk 0:02:53.4]} 11. Kb1
{[%clk 0:02:35.6]} 11... b5 {[%clk 0:02:53.3]} 12. a3 {[%clk 0:02:35.3]} 12...
Bb7 {[%clk 0:02:53.1]} 13. g4 {[%clk 0:02:32.7]} 13... Rc8 {[%clk 0:02:35.6]}
14. Bg2 {[%clk 0:02:31.2]} 14... Qc4 {[%clk 0:02:33.2]} 15. h3 {[%clk
0:01:53.5]} 15... b4 {[%clk 0:02:22.5]} 16. Qxc4 {[%clk 0:01:33.5]} 16... Rxc4
{[%clk 0:02:23.4]} 17. axb4 {[%clk 0:01:33.7]} 17... Rxb4 {[%clk 0:02:23.1]} 18.
Bf2 {[%clk 0:01:24]} 18... O-O {[%clk 0:02:17.9]} 19. Rhe1 {[%clk 0:01:23.5]}
19... Rc8 {[%clk 0:02:16.9]} 20. Nb3 {[%clk 0:01:16]} 20... a5 {[%clk
0:02:11.7]} 21. Nxa5 {[%clk 0:00:53.4]} 21... Rxc3 {[%clk 0:02:01.9]} 22. Nxb7
{[%clk 0:00:52.8]} 22... Rxb7 {[%clk 0:01:56.5]} 23. e5 {[%clk 0:00:52.4]} 23...
Rb8 {[%clk 0:01:42.5]} 24. exf6 {[%clk 0:00:30.1]} 24... Bxf6 {[%clk 0:01:42.5]}
25. Ba7 {[%clk 0:00:20.7]} 25... Rb4 {[%clk 0:01:40.1]} 26. b3 {[%clk
0:00:16.6]} 26... Rc7 {[%clk 0:01:38.1]} 27. Be3 {[%clk 0:00:15.6]} 27... Rb8
{[%clk 0:01:30.3]} 28. Rd3 {[%clk 0:00:06.6]} 28... Nc5 {[%clk 0:01:29.8]} 29.
Bxc5 {[%clk 0:00:06.7]} 29... Rxc5 {[%clk 0:01:30.1]} 30. Kc1 {[%clk 0:00:07]}
30... Rbc8 {[%clk 0:01:26.8]} 31. Re2 {[%clk 0:00:06.7]} 31... Rc3 {[%clk
0:01:21.4]} 32. Red2 {[%clk 0:00:03.4]} 32... g5 {[%clk 0:01:17.1]} 0-1